fUST/lending_fUST_20250901
["ID","MTS","AMOUNT","RATE_DAILY","PERIOD"]
[382528997,1756657855695,-841.77,0.00018073,2]
[382528998,1756657855706,-480.0,0.00018073,2]
[382528999,1756657855717,-759.14,0.00018073,2]
[382529000,1756657855727,-480.0,0.00018073,2]
[382529001,1756657855738,-2854.34,0.00018073,2]
[382529002,1756657855749,-480.0,0.00018073,2]
[382529003,1756657855759,-1222.41,0.00018073,2]
[382529004,1756657855770,-480.0,0.00018073,2]
[382529005,1756657855780,-2342.63,0.00018073,2]
[382529006,1756657855791,-151.0,0.00018073,2]
[382529007,1756657855801,-533.66,0.00018073,2]
[382529008,1756657855811,-151.0,0.00018073,2]
[382529009,1756657855821,-151.0,0.00018073,2]
[382529010,1756657855832,-480.0,0.00018073,2]
[382529011,1756657855842,-480.0,0.00018073,2]
[382529012,1756657855853,-637.07,0.00018073,2]
[382529013,1756657855864,-1051.42,0.00018073,2]
[382529014,1756657855873,-480.0,0.00018073,2]
[382529015,1756657855884,-480.0,0.00018073,2]
[382529016,1756657855894,-724.56,0.00018073,2]
[382529017,1756657855904,-480.0,0.00018073,2]
[382529018,1756657855914,-2511.97,0.00018073,2]
[382529019,1756657855924,-1853.11,0.00018073,2]
[382529020,1756657855934,-151.55384,0.00018073,2]
[382529021,1756657855945,-480.0,0.00018073,2]
[382529022,1756657855955,-480.0,0.00018073,2]
[382529023,1756657855965,-480.0,0.00018073,2]
[382529024,1756657855975,-1330.76,0.00018073,2]
[382529025,1756657855985,-1476.39,0.00018073,2]
[382529026,1756657855995,-480.0,0.00018073,2]
[382529027,1756657856006,-151.0,0.00018073,2]
[382529028,1756657856017,-1225.04,0.00018073,2]
[382529029,1756657856027,-272.52744143,0.00018073,2]
[382529030,1756657856037,-151.0,0.00018073,2]
[382529031,1756657856049,-480.0,0.00018073,2]
[382529032,1756657856060,-1905.28,0.00018073,2]
[382529033,1756657856070,-151.0,0.00018073,2]
[382529034,1756657856080,-151.0,0.00018073,2]
[382529035,1756657856092,-547.5,0.00018073,2]
[382529036,1756657856102,-151.0,0.00018073,2]
[382529037,1756657856112,-184.038744,0.00018073,2]
[382529038,1756657856123,-151.0,0.00018073,2]
[382529039,1756657856133,-480.0,0.00018073,2]
[382529040,1756657856143,-1613.25,0.00018073,2]
[382529041,1756657856152,-1225.21,0.00018073,2]
[382529042,1756657856162,-151.0,0.00018073,2]
[382529043,1756657856174,-1270.39,0.00018073,2]
[382529044,1756657856184,-151.0,0.00018073,2]
[382529045,1756657856196,-480.0,0.00018073,2]
[382529046,1756657856206,-480.0,0.00018073,2]
[382529047,1756657856219,-500.0,0.00018074,2]
[382529048,1756657856238,-480.0,0.00018074,2]
[382529049,1756657856249,-610.9,0.00018074,2]
[382529050,1756657856259,-480.0,0.00018074,2]
[382529051,1756657856269,-480.0,0.00018074,2]
[382529052,1756657856279,-986.67,0.00018074,2]
[382529053,1756657856291,-746.18,0.00018074,2]
[382529054,1756657856301,-491.07,0.00018074,2]
[382529056,1756657856311,-480.0,0.00018074,2]
[382529057,1756657856320,-480.0,0.00018074,2]
[382529059,1756657856330,-525.1,0.00018074,2]
[382529061,1756657856360,-480.0,0.00018074,2]
[382529063,1756657856371,-621.59548838,0.00018074,2]
[382529065,1756657856380,-647.59,0.00018074,2]
[382529067,1756657856390,-480.0,0.00018074,2]
[382529070,1756657856400,-806.18,0.00018074,2]
[382529072,1756657856410,-480.0,0.00018074,2]
[382529074,1756657856420,-480.0,0.00018074,2]
[382529076,1756657856429,-552.83,0.00018074,2]
[382529078,1756657856439,-480.0,0.00018074,2]
[382529080,1756657856448,-480.0,0.00018074,2]
[382529082,1756657856457,-480.0,0.00018074,2]
[382529084,1756657856467,-523.54,0.00018074,2]
[382529086,1756657856476,-480.0,0.00018074,2]
[382529088,1756657856486,-624.3,0.00018074,2]
[382529090,1756657856495,-599.00710125,0.00018074,2]
[382529091,1756657856505,-480.0,0.00018074,2]
[382529092,1756657856515,-480.0,0.00018074,2]
[382529093,1756657856525,-480.0,0.00018074,2]
[382529094,1756657856535,-733.47,0.00018074,2]
[382529095,1756657856546,-617.6,0.00018074,2]
[382529096,1756657856555,-480.0,0.00018074,2]
[382529097,1756657856566,-552.79,0.00018074,2]
[382529098,1756657856576,-480.0,0.00018076,2]
[382529099,1756657856587,-480.0,0.00018076,2]
[382529100,1756657856596,-584.91,0.00018076,2]
[382529101,1756657856606,-480.0,0.00018076,2]
[382529102,1756657856616,-480.0,0.00018076,2]
[382529103,1756657856626,-569.65,0.00018076,2]
[382529104,1756657856637,-480.0,0.00018076,2]
[382529105,1756657856647,-480.0,0.00018076,2]
[382529106,1756657856656,-786.46,0.00018076,2]
[382529108,1756657856666,-1044.72,0.00018076,2]
[382529110,1756657856675,-480.0,0.00018076,2]
[382529112,1756657856685,-480.0,0.00018076,2]
[382529114,1756657856695,-535.44103704,0.00018076,2]
[382529116,1756657856704,-480.0,0.00018076,2]
[382529118,1756657856715,-480.0,0.00018076,2]
[382529120,1756657856725,-480.0,0.00018076,2]
[382529122,1756657856735,-480.0,0.00018076,2]
[382529124,1756657856745,-582.48,0.00018076,2]
[382529126,1756657856755,-480.0,0.00018076,2]
[382529128,1756657856767,-929.89,0.00018076,2]
[382529131,1756657856778,-1477.03,0.00018076,2]
[382529133,1756657856788,-416.68614184,0.00018076,2]
[382529135,1756657856797,-151.0,0.00018076,2]
[382529137,1756657856808,-480.0,0.00018076,2]
[382529139,1756657856819,-151.0,0.00018076,2]
[382529141,1756657856828,-151.0,0.00018076,2]
[382529143,1756657856839,-284.048892,0.00018076,2]
[382529145,1756657856848,-151.123548,0.00018076,2]
[382529147,1756657856859,-151.0,0.00018076,2]
[382529149,1756657856868,-153.377941,0.00018082,10]
[382529151,1756657856878,-151.0,0.00018084,2]
[382529153,1756657856887,-151.0,0.00018084,2]
[382529155,1756657856897,-500.0,0.00018084,2]
[382529157,1756657856907,-151.0,0.00018084,2]
[382529159,1756657856917,-151.0,0.00018084,2]
[382529162,1756657856927,-500.0,0.00018084,2]
[382529164,1756657856937,-500.0,0.00018084,2]
[382529166,1756657856947,-151.0,0.00018084,2]
[382529168,1756657856958,-151.0,0.00018084,2]
[382529170,1756657856967,-151.0,0.00018084,2]
[382529172,1756657856976,-151.0,0.00018084,2]
[382529174,1756657856986,-500.0,0.00018084,2]
[382529176,1756657856995,-500.0,0.00018084,2]
[382529178,1756657857005,-242.19928668,0.00018084,2]
[382529180,1756657857016,-500.0,0.00018084,2]
[382529182,1756657857026,-500.0,0.00018084,2]
[382529191,1756657857102,-151.0,0.00018084,2]
[382529193,1756657857112,-5000.0,0.00018098,2]
[382529195,1756657857121,-151.0,0.000181,2]
[382529197,1756657857130,-100231.1267654,0.00018101,2]
[382529199,1756657857140,-22071.3565906,0.00018101,2]
[382529201,1756657857149,-151.0,0.00018101,2]
[382529203,1756657857159,-151.0,0.00018101,2]
[382529205,1756657857168,-151.0,0.00018101,2]
[382529207,1756657857177,-151.0,0.00018101,2]
[382529208,1756657857186,-151.0,0.00018101,2]
[382529210,1756657857195,-151.0,0.00018101,2]
[382529213,1756657857205,-151.0,0.00018101,2]
[382529215,1756657857219,-151.0,0.00018101,2]
[382529217,1756657857231,-151.0,0.00018101,2]
[382529218,1756657857240,-151.0,0.00018101,2]
[382529221,1756657857250,-151.0,0.00018101,2]
[382529222,1756657857259,-168.887494,0.00018101,2]
[382529224,1756657857271,-168.887494,0.00018101,2]
[382529226,1756657857280,-168.887494,0.00018101,2]
[382529228,1756657857289,-168.887494,0.00018101,2]
[382529230,1756657857299,-151.0,0.00018101,2]
[382529232,1756657857308,-151.0,0.00018101,2]
[382529234,1756657857317,-174.328887,0.00018101,2]
[382529236,1756657857326,-151.0,0.00018101,2]
[382529238,1756657857336,-151.0,0.00018101,2]
[382529240,1756657857345,-151.0,0.00018101,2]
[382529242,1756657857355,-226.906472,0.00018101,2]
[382529244,1756657857364,-238.055936,0.00018101,2]
[382529246,1756657857374,-238.055936,0.00018101,2]
[382529248,1756657857383,-238.055936,0.00018101,2]
[382529250,1756657857392,-238.055936,0.00018101,2]
[382529252,1756657857402,-295.25533,0.00018101,2]
[382529254,1756657857411,-151.0,0.00018101,2]
[382529256,1756657857420,-151.0,0.00018101,2]
[382529258,1756657857429,-151.0,0.00018101,2]
[382529260,1756657857438,-151.0,0.00018101,2]
[382529262,1756657857448,-151.0,0.00018101,2]
[382529264,1756657857457,-258.96907,0.00018101,2]
[382529266,1756657857466,-489.0,0.00018111,2]
[382529268,1756657857475,-151.0,0.0001812,2]
[382529270,1756657857484,-151.0,0.0001812,2]
[382529272,1756657857494,-290.506704,0.0001812,2]
[382529274,1756657857503,-519.01229826,0.0001812,2]
[382529276,1756657857513,-501.09309869,0.00018121,2]
[382529278,1756657857523,-1000.0,0.00018121,2]
[382529280,1756657857532,-1000.0,0.00018121,2]
[382529282,1756657857541,-1000.0,0.00018121,2]
[382529284,1756657857552,-1000.0,0.00018121,2]
[382529286,1756657857561,-1000.0,0.00018121,2]
[382529288,1756657857571,-1000.0,0.00018121,2]
[382529290,1756657857582,-1000.0,0.00018121,2]
[382529292,1756657857591,-1000.0,0.00018121,2]
[382529294,1756657857600,-629.53150776,0.00018121,2]
[382529296,1756657857611,-1000.0,0.00018121,2]
[382529298,1756657857620,-684.13795126,0.00018121,2]
[382529300,1756657857629,-1000.0,0.00018121,2]
[382529302,1756657857638,-1000.0,0.00018121,2]
[382529304,1756657857648,-1000.0,0.00018121,2]
[382529306,1756657857657,-1000.0,0.00018121,2]
[382529308,1756657857666,-510.94333666,0.00018121,2]
[382529310,1756657857675,-1019.97580936,0.00018121,2]
[382529312,1756657857684,-1000.0,0.00018121,2]
[382529314,1756657857693,-1000.0,0.00018121,2]
[382529316,1756657857703,-1000.0,0.00018121,2]
[382529318,1756657857712,-1000.0,0.00018121,2]
[382529320,1756657857722,-1000.0,0.00018121,2]
[382529322,1756657857731,-1000.0,0.00018121,2]
[382529324,1756657857741,-1000.0,0.00018121,2]
[382529326,1756657857751,-1000.0,0.00018121,2]
[382529328,1756657857761,-1000.0,0.00018121,2]
[382529330,1756657857770,-1000.0,0.00018121,2]
[382529332,1756657857779,-1000.0,0.00018121,2]
[382529334,1756657857788,-9388.05555082,0.00018125,2]
[382529336,1756657857797,-184.400329,0.00018125,2]
[382529338,1756657857806,-222.837283,0.00018125,2]
[382529340,1756657857815,-168.0,0.00018171,2]
[382529342,1756657857827,-151.0,0.000182,2]
[382529344,1756657857836,-489.0,0.00018203,2]
[382529346,1756657857845,-14603.14603986,0.00018247,2]
[382529348,1756657857855,-151.0,0.00018247,2]
[382529350,1756657857864,-166.626471,0.00018247,2]
[382529352,1756657857874,-151.0,0.00018247,2]
[382529354,1756657857884,-151.0,0.00018247,2]
[382529356,1756657857893,-187.2916484,0.0001825,2]
[382529358,1756657857903,-153.377941,0.00018255,15]
[382529360,1756657857913,-153.377941,0.00018255,15]
[382529363,1756657857922,-153.377941,0.00018257,10]
[382529365,1756657857931,-375.0,0.00018264,2]
[382529366,1756657857940,-151.0,0.000183,2]
[382529368,1756657857950,-168.0,0.00018316,2]
[382529370,1756657857959,-151.0,0.00018332,2]
[382529372,1756657857968,-151.0,0.00018332,2]
[382529375,1756657857977,-151.0,0.00018332,2]
[382529377,1756657857987,-151.0,0.00018332,2]
[382529379,1756657857996,-1000.0,0.00018335,2]
[382529381,1756657858005,-1000.0,0.00018335,2]
[382529383,1756657858015,-1000.0,0.00018335,2]
[382529385,1756657858025,-1000.0,0.0001834,2]
[382529387,1756657858033,-486.9843952,0.00018343,2]
[382529389,1756657858043,-151.0,0.00018345,2]
[382529391,1756657858052,-151.0,0.00018345,2]
[382529393,1756657858063,-151.0,0.00018345,2]
[382529395,1756657858072,-151.0,0.00018345,2]
[382529397,1756657858081,-151.0,0.00018345,2]
[382529399,1756657858091,-151.0,0.00018345,2]
[382529401,1756657858100,-480.0,0.00018345,2]
[382529403,1756657858110,-6938.87,0.00018345,2]
[382529405,1756657858119,-1216.54,0.00018345,2]
[382529407,1756657858128,-193.694951,0.00018345,2]
[382529409,1756657858137,-855.11,0.00018345,2]
[382529410,1756657858146,-1478.65,0.00018345,2]
[382529412,1756657858156,-693.22,0.00018345,2]
[382529414,1756657858165,-1633.31,0.00018345,2]
[382529416,1756657858175,-480.0,0.00018345,2]
[382529418,1756657858185,-4778.03,0.00018345,2]
[382529421,1756657858194,-2906.33,0.00018345,2]
[382529422,1756657858204,-579.69,0.00018345,2]
[382529424,1756657858214,-1396.22,0.00018345,2]
[382529426,1756657858228,-938.5,0.00018345,2]
[382529429,1756657858238,-1764.23,0.00018345,2]
[382529431,1756657858250,-151.0,0.00018346,2]
[382529432,1756657858260,-151.0,0.00018346,2]
[382529434,1756657858271,-151.0,0.00018346,2]
[382529437,1756657858281,-151.0,0.00018346,2]
[382529439,1756657858292,-480.0,0.00018346,2]
[382529441,1756657858301,-480.0,0.00018346,2]
[382529443,1756657858310,-505.61,0.00018346,2]
[382529445,1756657858319,-493.46,0.00018346,2]
[382529447,1756657858329,-489.45,0.00018346,2]
[382529449,1756657858339,-165.47958596,0.00018346,2]
[382529451,1756657858349,-745.47,0.00018346,2]
[382529453,1756657858358,-481.98,0.00018346,2]
[382529455,1756657858367,-844.26,0.00018346,2]
[382529457,1756657858378,-480.0,0.00018346,2]
[382529459,1756657858388,-480.0,0.00018346,2]
[382529461,1756657858398,-838.05,0.00018346,2]
[382529463,1756657858407,-1080.38,0.00018346,2]
[382529466,1756657858418,-1256.77,0.00018346,2]
[382529468,1756657858427,-1257.59,0.00018346,2]
[382529470,1756657858438,-606.92,0.00018346,2]
[382529472,1756657858449,-480.0,0.00018346,2]
[382529474,1756657858458,-549.02,0.00018346,2]
[382529476,1756657858468,-480.0,0.00018346,2]
[382529478,1756657858478,-480.0,0.00018346,2]
[382529480,1756657858487,-618.78,0.00018346,2]
[382529482,1756657858497,-480.0,0.00018346,2]
[382529484,1756657858507,-1450.68,0.00018346,2]
[382529486,1756657858517,-1736.43,0.00018346,2]
[382529488,1756657858526,-638.98,0.00018346,2]
[382529490,1756657858538,-480.0,0.00018347,2]
[382529493,1756657858548,-480.0,0.00018347,2]
[382529495,1756657858557,-480.0,0.00018347,2]
[382529497,1756657858566,-480.0,0.00018347,2]
[382529499,1756657858576,-525.69,0.00018347,2]
[382529501,1756657858585,-480.0,0.00018347,2]
[382529503,1756657858594,-480.0,0.00018347,2]
[382529505,1756657858604,-598.54,0.00018347,2]
[382529507,1756657858614,-480.0,0.00018347,2]
[382529509,1756657858623,-1420.98,0.00018347,2]
[382529511,1756657858633,-480.0,0.00018347,2]
[382529513,1756657858642,-503.41,0.00018347,2]
[382529515,1756657858652,-480.0,0.00018347,2]
[382529517,1756657858662,-480.0,0.00018347,2]
[382529519,1756657858671,-480.0,0.00018347,2]
[382529521,1756657858681,-499.45047624,0.00018347,2]
[382529523,1756657858692,-480.0,0.00018347,2]
[382529525,1756657858703,-1406.02,0.00018347,2]
[382529527,1756657858713,-832.07,0.00018347,2]
[382529529,1756657858722,-151.0,0.00018347,2]
[382529531,1756657858732,-480.0,0.00018347,2]
[382529533,1756657858742,-480.0,0.00018347,2]
[382529535,1756657858752,-480.0,0.00018347,2]
[382529537,1756657858762,-480.0,0.00018347,2]
[382529539,1756657858771,-480.0,0.00018347,2]
[382529541,1756657858782,-480.0,0.00018347,2]
[382529543,1756657858791,-692.35,0.00018347,2]
[382529545,1756657858802,-480.0,0.00018347,2]
[382529547,1756657858813,-480.0,0.00018347,2]
[382529549,1756657858823,-828.28,0.00018347,2]
[382529551,1756657858832,-687.22,0.00018347,2]
[382529553,1756657858842,-924.77,0.00018347,2]
[382529555,1756657858851,-480.0,0.00018347,2]
[382529557,1756657858861,-571.26,0.00018347,2]
[382529559,1756657858871,-480.0,0.00018347,2]
[382529561,1756657858881,-734.92,0.00018347,2]
[382529563,1756657858891,-901.21,0.00018347,2]
[382529565,1756657858900,-719.82,0.00018347,2]
[382529567,1756657858910,-636.43,0.00018347,2]
[382529569,1756657858919,-480.0,0.00018347,2]
[382529571,1756657858929,-608.79,0.00018347,2]
[382529573,1756657858939,-480.0,0.00018347,2]
[382529575,1756657858949,-480.0,0.00018347,2]
[382529577,1756657858959,-480.0,0.00018347,2]
[382529579,1756657858969,-480.0,0.00018347,2]
[382529581,1756657858979,-553.41,0.00018347,2]
[382529583,1756657858988,-480.0,0.00018347,2]
[382529585,1756657858998,-480.0,0.00018347,2]
[382529588,1756657859010,-920.8,0.00018347,2]
[382529590,1756657859020,-1002.33,0.00018347,2]
[382529591,1756657859031,-480.0,0.00018347,2]
[382529593,1756657859041,-806.79,0.00018347,2]
[382529595,1756657859054,-330.93530943,0.00018347,2]
[382529597,1756657859064,-237.97448749,0.00018347,2]
[382529600,1756657859075,-715.13,0.00018347,2]
[382529602,1756657859085,-480.0,0.00018347,2]
[382529604,1756657859095,-480.0,0.00018347,2]
[382529606,1756657859104,-480.0,0.00018347,2]
[382529608,1756657859114,-480.0,0.00018347,2]
[382529610,1756657859123,-2086.3,0.00018347,2]
[382529612,1756657859133,-480.0,0.00018347,2]
[382529614,1756657859143,-480.0,0.00018347,2]
[382529616,1756657859153,-480.0,0.00018347,2]
[382529618,1756657859163,-1306.82,0.00018347,2]
[382529620,1756657859174,-788.92,0.00018347,2]
[382529622,1756657859183,-480.0,0.00018347,2]
[382529624,1756657859193,-916.68,0.00018347,2]
[382529626,1756657859202,-480.0,0.00018347,2]
[382529628,1756657859212,-636.2,0.00018347,2]
[382529630,1756657859223,-151.0,0.00018347,2]
[382529632,1756657859234,-480.0,0.00018347,2]
[382529634,1756657859244,-480.0,0.00018347,2]
[382529636,1756657859254,-151.0,0.00018347,2]
[382529638,1756657859264,-409.74668676,0.00018347,2]
[382529640,1756657859273,-151.0,0.00018347,2]
[382529642,1756657859283,-480.0,0.00018347,2]
[382529644,1756657859292,-572.73,0.00018347,2]
[382529646,1756657859302,-1206.47,0.00018347,2]
[382529648,1756657859312,-480.0,0.00018347,2]
[382529650,1756657859322,-151.0,0.00018347,2]
[382529652,1756657859332,-730.21,0.00018347,2]
[382529654,1756657859342,-327.95776458,0.00018347,2]
[382529656,1756657859352,-480.0,0.00018347,2]
[382529658,1756657859363,-480.0,0.00018347,2]
[382529660,1756657859373,-843.85,0.00018347,2]
[382529662,1756657859382,-614.94830813,0.00018347,2]
[382529665,1756657859394,-704.81,0.00018347,2]
[382529667,1756657859404,-151.0,0.00018347,2]
[382529669,1756657859414,-626.04,0.00018347,2]
[382529671,1756657859424,-1454.86,0.00018347,2]
[382529673,1756657859435,-480.0,0.00018347,2]
[382529675,1756657859444,-151.0,0.00018347,2]
[382529677,1756657859454,-1004.82,0.00018347,2]
[382529679,1756657859463,-1694.45,0.00018347,2]
[382529681,1756657859473,-831.25,0.00018347,2]
[382529683,1756657859483,-480.0,0.00018347,2]
[382529685,1756657859493,-480.0,0.00018347,2]
[382529687,1756657859503,-480.0,0.00018347,2]
[382529689,1756657859512,-480.0,0.00018347,2]
[382529691,1756657859522,-480.0,0.00018347,2]
[382529693,1756657859531,-622.54,0.00018347,2]
[382529695,1756657859540,-580.61,0.00018347,2]
[382529697,1756657859550,-549.93,0.00018347,2]
[382529699,1756657859559,-480.0,0.00018347,2]
[382529701,1756657859569,-480.0,0.00018347,2]
[382529703,1756657859579,-480.0,0.00018347,2]
[382529705,1756657859589,-513.99,0.00018347,2]
[382529707,1756657859599,-480.0,0.00018347,2]
[382529709,1756657859608,-644.35,0.00018347,2]
[382529711,1756657859618,-1195.69,0.00018347,2]
[382529713,1756657859627,-1905.95,0.00018347,2]
[382529715,1756657859637,-1349.31,0.00018347,2]
[382529717,1756657859646,-480.0,0.00018347,2]
[382529719,1756657859656,-480.0,0.00018347,2]
[382529721,1756657859666,-1533.18,0.00018347,2]
[382529723,1756657859675,-480.0,0.00018347,2]
[382529725,1756657859685,-1320.11,0.00018347,2]
[382529727,1756657859694,-482.84,0.00018347,2]
[382529729,1756657859703,-618.4,0.00018347,2]
[382529731,1756657859714,-578.50855936,0.00018347,2]
[382529733,1756657859724,-1315.24,0.00018347,2]
[382529735,1756657859733,-480.0,0.00018347,2]
[382529737,1756657859743,-480.0,0.00018347,2]
[382529739,1756657859752,-480.0,0.00018347,2]
[382529741,1756657859762,-480.0,0.00018347,2]
[382529743,1756657859772,-480.0,0.00018347,2]
[382529745,1756657859782,-1083.69,0.00018347,2]
[382529747,1756657859791,-1286.27,0.00018347,2]
[382529749,1756657859801,-480.0,0.00018347,2]
[382529751,1756657859811,-480.0,0.00018347,2]
[382529753,1756657859820,-480.0,0.00018347,2]
[382529755,1756657859830,-480.0,0.00018347,2]
[382529756,1756657859840,-1082.04,0.00018347,2]
[382529758,1756657859851,-480.0,0.00018347,2]
[382529760,1756657859860,-480.0,0.00018347,2]
[382529763,1756657859870,-712.42,0.00018347,2]
[382529765,1756657859880,-1334.57,0.00018347,2]
[382529767,1756657859890,-439.57964417,0.00018347,2]
[382529768,1756657859900,-1378.19,0.00018347,2]
[382529771,1756657859910,-480.0,0.00018347,2]
[382529772,1756657859920,-1005.83,0.00018347,2]
[382529774,1756657859930,-1090.16,0.00018347,2]
[382529776,1756657859940,-1500.78,0.00018347,2]
[382529778,1756657859949,-480.0,0.00018347,2]
[382529780,1756657859960,-502.92,0.00018347,2]
[382529783,1756657859970,-160.424535,0.00018347,2]
[382529784,1756657859980,-536.22,0.00018347,2]
[382529786,1756657859990,-506.47,0.00018347,2]
[382529789,1756657860000,-480.0,0.00018347,2]
[382529791,1756657860010,-719.81,0.00018347,2]
[382529792,1756657860020,-1481.01,0.00018347,2]
[382529794,1756657860030,-480.0,0.00018347,2]
[382529796,1756657860040,-480.0,0.00018347,2]
[382529798,1756657860050,-480.0,0.00018347,2]
[382529800,1756657860060,-723.92,0.00018347,2]
[382529802,1756657860071,-602.86568468,0.00018347,2]
[382529804,1756657860083,-434.75143549,0.00018347,2]
[382529806,1756657860093,-480.0,0.00018347,2]
[382529808,1756657860103,-635.13,0.00018347,2]
[382529810,1756657860114,-480.0,0.00018347,2]
[382529812,1756657860124,-480.0,0.00018347,2]
[382529814,1756657860134,-168.887494,0.00018347,2]
[382529816,1756657860144,-650.55,0.00018347,2]
[382529818,1756657860154,-574.39,0.00018347,2]
[382529820,1756657860166,-168.887494,0.00018347,2]
[382529822,1756657860178,-1438.4,0.00018347,2]
[382529824,1756657860188,-168.887494,0.00018347,2]
[382529826,1756657860198,-648.66,0.00018347,2]
[382529828,1756657860208,-515.67,0.00018347,2]
[382529830,1756657860219,-168.887494,0.00018347,2]
[382529832,1756657860234,-480.0,0.00018347,2]
[382529834,1756657860244,-622.29,0.00018347,2]
[382529836,1756657860256,-151.0,0.00018347,2]
[382529839,1756657860277,-548.92,0.00018347,2]
[382529840,1756657860288,-480.0,0.00018347,2]
[382529843,1756657860299,-598.76,0.00018347,2]
[382529845,1756657860309,-703.41,0.00018347,2]
[382529847,1756657860320,-508.02,0.00018347,2]
[382529849,1756657860329,-151.0,0.00018347,2]
[382529851,1756657860339,-480.0,0.00018347,2]
[382529853,1756657860350,-151.0,0.00018347,2]
[382529855,1756657860360,-480.0,0.00018347,2]
[382529857,1756657860370,-151.0,0.00018347,2]
[382529859,1756657860381,-568.45,0.00018347,2]
[382529860,1756657860391,-480.0,0.00018347,2]
[382529862,1756657860401,-539.42,0.00018347,2]
[382529864,1756657860411,-1010.37,0.00018347,2]
[382529866,1756657860422,-1178.78,0.00018347,2]
[382529868,1756657860432,-480.0,0.00018347,2]
[382529870,1756657860442,-480.0,0.00018347,2]
[382529872,1756657860452,-480.0,0.00018347,2]
[382529874,1756657860462,-792.37,0.00018347,2]
[382529876,1756657860471,-480.0,0.00018347,2]
[382529878,1756657860480,-571.38,0.00018347,2]
[382529880,1756657860492,-822.78,0.00018347,2]
[382529882,1756657860502,-480.0,0.00018347,2]
[382529884,1756657860512,-271.31029319,0.00018347,2]
[382529886,1756657860524,-480.0,0.00018347,2]
[382529888,1756657860535,-480.0,0.00018347,2]
[382529890,1756657860544,-238.055936,0.00018347,2]
[382529892,1756657860555,-984.06,0.00018347,2]
[382529894,1756657860564,-238.055936,0.00018347,2]
[382529896,1756657860574,-783.71,0.00018347,2]
[382529898,1756657860585,-480.0,0.00018347,2]
[382529900,1756657860595,-703.88,0.00018347,2]
[382529918,1756657860763,-238.055936,0.00018347,2]
[382529920,1756657860774,-480.0,0.00018347,2]
[382529922,1756657860783,-480.0,0.00018347,2]
[382529924,1756657860792,-238.055936,0.00018347,2]
[382529926,1756657860801,-1129.35,0.00018347,2]
[382529928,1756657860811,-480.0,0.00018347,2]
[382529930,1756657860820,-151.0,0.00018347,2]
[382529932,1756657860830,-480.0,0.00018347,2]
[382529934,1756657860839,-577.49,0.00018347,2]
[382529936,1756657860848,-1291.95,0.00018347,2]
[382529937,1756657860857,-769.01,0.00018347,2]
[382529939,1756657860866,-1096.6,0.00018347,2]
[382529940,1756657860876,-332.1,0.00018347,2]
[382529942,1756657860885,-1238.06,0.00018347,2]
[382529944,1756657860895,-578.23,0.00018347,2]
[382529946,1756657860904,-1313.99,0.00018347,2]
[382529948,1756657860913,-914.05,0.00018347,2]